[Event "*** Titled Tuesday 3|2 Blitz (Early)"]
[Site "Chess.com"]
[Date "2017.01.03"]
[Round "3"]
[White "sandropozo"]
[Black "Gordima"]
[Result "1/2-1/2"]
[WhiteElo "2407"]
[BlackElo "2482"]
[TimeControl "180+2"]
[EndTime "11:40:15 PST"]
[Termination "Game drawn - insufficient material"]

1. d4 {[%clk 0:03:02]} 1... c5 {[%clk 0:02:57.7]} 2. e3 {[%clk 0:03:00.7]} 2...
g6 {[%clk 0:02:58.4]} 3. Nf3 {[%clk 0:02:59.6]} 3... Bg7 {[%clk 0:02:59]} 4. c4
{[%clk 0:03:00.9]} 4... Nf6 {[%clk 0:02:58.4]} 5. Nc3 {[%clk 0:03:02.2]} 5...
O-O {[%clk 0:02:55.7]} 6. Be2 {[%clk 0:03:01.2]} 6... cxd4 {[%clk 0:02:55.9]} 7.
Nxd4 {[%clk 0:03:01.8]} 7... Nc6 {[%clk 0:02:54.4]} 8. O-O {[%clk 0:02:56.5]}
8... d6 {[%clk 0:02:49.1]} 9. b3 {[%clk 0:02:55.8]} 9... Bd7 {[%clk 0:02:47]}
10. Bb2 {[%clk 0:02:55.7]} 10... Rc8 {[%clk 0:02:47.9]} 11. Rc1 {[%clk
0:02:50.3]} 11... a6 {[%clk 0:02:48]} 12. Qd2 {[%clk 0:02:50.5]} 12... Qa5
{[%clk 0:02:43]} 13. Rfd1 {[%clk 0:02:46.8]} 13... Ne5 {[%clk 0:02:34.9]} 14. h3
{[%clk 0:02:27.5]} 14... Rfe8 {[%clk 0:02:33]} 15. a3 {[%clk 0:02:13.9]} 15...
Qc5 {[%clk 0:02:23.3]} 16. b4 {[%clk 0:01:42.4]} 16... Qa7 {[%clk 0:02:23.4]}
17. Nd5 {[%clk 0:01:43.6]} 17... Nxd5 {[%clk 0:02:08.8]} 18. cxd5 {[%clk
0:01:43.8]} 18... b5 {[%clk 0:02:10.4]} 19. Rxc8 {[%clk 0:01:26.2]} 19... Rxc8
{[%clk 0:02:10.4]} 20. Rc1 {[%clk 0:01:26.7]} 20... Nc4 {[%clk 0:02:02]} 21.
Bxc4 {[%clk 0:01:27.4]} 21... bxc4 {[%clk 0:01:43.8]} 22. Ne2 {[%clk 0:01:21.4]}
22... Ba4 {[%clk 0:01:10.3]} 23. Bxg7 {[%clk 0:01:18.2]} 23... Kxg7 {[%clk
0:01:12.2]} 24. Nc3 {[%clk 0:01:16.4]} 24... Bb3 {[%clk 0:01:11.2]} 25. e4
{[%clk 0:01:15.8]} 25... a5 {[%clk 0:01:09]} 26. Nb5 {[%clk 0:01:05.8]} 26...
Qb6 {[%clk 0:00:53.2]} 27. Nd4 {[%clk 0:01:05.4]} 27... Ba4 {[%clk 0:00:33.1]}
28. bxa5 {[%clk 0:01:02.9]} 28... Qc5 {[%clk 0:00:29.7]} 29. Qc3 {[%clk
0:01:02.9]} 29... Kg8 {[%clk 0:00:28.7]} 30. Rb1 {[%clk 0:01:04]} 30... Bb3
{[%clk 0:00:17.4]} 31. Nc6 {[%clk 0:01:00.7]} 31... Rc7 {[%clk 0:00:10.2]} 32.
a6 {[%clk 0:00:59.7]} 32... Qxa3 {[%clk 0:00:10.6]} 33. a7 {[%clk 0:00:57.5]}
33... Rxa7 {[%clk 0:00:10.4]} 34. Nxa7 {[%clk 0:00:55.8]} 34... Qxa7 {[%clk
0:00:11.9]} 35. Ra1 {[%clk 0:00:56.4]} 35... Qb7 {[%clk 0:00:07.4]} 36. Qd4
{[%clk 0:00:56]} 36... Qb8 {[%clk 0:00:02.9]} 37. Qa7 {[%clk 0:00:44.9]} 37...
Qxa7 {[%clk 0:00:02.1]} 38. Rxa7 {[%clk 0:00:45.5]} 38... Kf8 {[%clk 0:00:02.8]}
39. Rc7 {[%clk 0:00:43.8]} 39... f5 {[%clk 0:00:03.9]} 40. f3 {[%clk 0:00:37.4]}
40... fxe4 {[%clk 0:00:05]} 41. fxe4 {[%clk 0:00:39]} 41... Ke8 {[%clk
0:00:06.6]} 42. Kf2 {[%clk 0:00:39.8]} 42... Kd8 {[%clk 0:00:08]} 43. Rb7 {[%clk
0:00:37.5]} 43... Ba4 {[%clk 0:00:07.1]} 44. Rb4 {[%clk 0:00:36.6]} 44... Bb3
{[%clk 0:00:07.8]} 45. Rb7 {[%clk 0:00:35.6]} 45... Ke8 {[%clk 0:00:08]} 46. Ke3
{[%clk 0:00:35.2]} 46... Bc2 {[%clk 0:00:09.3]} 47. Kd4 {[%clk 0:00:34.3]} 47...
Bd3 {[%clk 0:00:10.5]} 48. e5 {[%clk 0:00:30.8]} 48... dxe5+ {[%clk 0:00:11.7]}
49. Kxe5 {[%clk 0:00:31.8]} 49... c3 {[%clk 0:00:11.9]} 50. Rc7 {[%clk 0:00:28]}
50... c2 {[%clk 0:00:13.2]} 51. g4 {[%clk 0:00:29]} 51... h5 {[%clk 0:00:10.8]}
52. Ke6 {[%clk 0:00:26.4]} 52... Kd8 {[%clk 0:00:05.8]} 53. Rc3 {[%clk
0:00:23.4]} 53... hxg4 {[%clk 0:00:06.9]} 54. hxg4 {[%clk 0:00:24.1]} 54... Be2
{[%clk 0:00:08.2]} 55. Rxc2 {[%clk 0:00:17.7]} 55... Bxg4+ {[%clk 0:00:09]} 56.
Ke5 {[%clk 0:00:18.7]} 56... Bf5 {[%clk 0:00:10.5]} 57. Rb2 {[%clk 0:00:18.5]}
57... Ke8 {[%clk 0:00:11.5]} 58. Rb7 {[%clk 0:00:18.5]} 58... Kf8 {[%clk
0:00:12.1]} 59. Rc7 {[%clk 0:00:16.5]} 59... Ke8 {[%clk 0:00:13]} 60. Ra7 {[%clk
0:00:17.4]} 60... Kf8 {[%clk 0:00:13.6]} 61. Kf4 {[%clk 0:00:17.2]} 61... Ke8
{[%clk 0:00:14.4]} 62. Ke5 {[%clk 0:00:18.4]} 62... Kf8 {[%clk 0:00:15.6]} 63.
d6 {[%clk 0:00:19.6]} 63... exd6+ {[%clk 0:00:16.6]} 64. Kxd6 {[%clk 0:00:20.1]}
64... Ke8 {[%clk 0:00:17.9]} 65. Ke5 {[%clk 0:00:21.2]} 65... Kd8 {[%clk
0:00:19.1]} 66. Kf6 {[%clk 0:00:22.3]} 66... Ke8 {[%clk 0:00:19.2]} 67. Rg7
{[%clk 0:00:23.1]} 67... Kd8 {[%clk 0:00:19.3]} 68. Rf7 {[%clk 0:00:23.8]} 68...
Ke8 {[%clk 0:00:20.3]} 69. Rh7 {[%clk 0:00:24.4]} 69... Kd8 {[%clk 0:00:21.5]}
70. Re7 {[%clk 0:00:26]} 70... Kc8 {[%clk 0:00:22.2]} 71. Ke5 {[%clk 0:00:25.4]}
71... Kb8 {[%clk 0:00:18.6]} 72. Kd6 {[%clk 0:00:26.2]} 72... Bg4 {[%clk
0:00:17.5]} 73. Kc6 {[%clk 0:00:26.8]} 73... Bf3+ {[%clk 0:00:18.7]} 74. Kb6
{[%clk 0:00:26.4]} 74... Kc8 {[%clk 0:00:19.8]} 75. Rg7 {[%clk 0:00:24.5]} 75...
Be4 {[%clk 0:00:20]} 76. Kc5 {[%clk 0:00:25.4]} 76... Kd8 {[%clk 0:00:21.3]} 77.
Kd6 {[%clk 0:00:26.4]} 77... Kc8 {[%clk 0:00:19.6]} 78. Re7 {[%clk 0:00:24.6]}
78... Bf5 {[%clk 0:00:20.2]} 79. Kc6 {[%clk 0:00:25.4]} 79... Kd8 {[%clk
0:00:21]} 80. Kd6 {[%clk 0:00:24.4]} 80... Kc8 {[%clk 0:00:21.7]} 81. Rf7 {[%clk
0:00:25]} 81... Bd3 {[%clk 0:00:16.6]} 82. Kc6 {[%clk 0:00:19.9]} 82... Be4+
{[%clk 0:00:16]} 83. Kd6 {[%clk 0:00:20.6]} 83... Bd3 {[%clk 0:00:17]} 84. Rg7
{[%clk 0:00:21.3]} 84... Bf5 {[%clk 0:00:16.3]} 85. Rc7+ {[%clk 0:00:21.7]}
85... Kd8 {[%clk 0:00:17]} 86. Re7 {[%clk 0:00:22.4]} 86... Bd3 {[%clk
0:00:14.1]} 87. Ke6 {[%clk 0:00:20.4]} 87... Bf5+ {[%clk 0:00:13.9]} 88. Kf6
{[%clk 0:00:21.2]} 88... Kc8 {[%clk 0:00:14.3]} 89. Rg7 {[%clk 0:00:21.2]} 89...
Kd8 {[%clk 0:00:15]} 90. Ke5 {[%clk 0:00:21.7]} 90... Ke8 {[%clk 0:00:15.5]} 91.
Kf6 {[%clk 0:00:21.7]} 91... Kd8 {[%clk 0:00:16.3]} 92. Re7 {[%clk 0:00:22.8]}
92... Kc8 {[%clk 0:00:14.2]} 93. Ke5 {[%clk 0:00:23.9]} 93... Kd8 {[%clk
0:00:15.4]} 94. Kd6 {[%clk 0:00:24.6]} 94... Bd3 {[%clk 0:00:15.1]} 95. Rg7
{[%clk 0:00:23.8]} 95... Kc8 {[%clk 0:00:14.5]} 96. Rg8+ {[%clk 0:00:24.6]}
96... Kb7 {[%clk 0:00:15.2]} 97. Rf8 {[%clk 0:00:23.8]} 97... Bf5 {[%clk
0:00:15.4]} 98. Rf6 {[%clk 0:00:23.6]} 98... Kb6 {[%clk 0:00:14.7]} 99. Ke5+
{[%clk 0:00:24.6]} 99... Kc5 {[%clk 0:00:15.6]} 100. Rf8 {[%clk 0:00:23.6]}
100... Kc4 {[%clk 0:00:16.5]} 101. Rf7 {[%clk 0:00:23.9]} 101... Kd3 {[%clk
0:00:17.6]} 102. Rxf5 {[%clk 0:00:23.3]} 102... gxf5 {[%clk 0:00:18.2]} 103.
Kxf5 {[%clk 0:00:24.3]} 1/2-1/2

[Event "*** Titled Tuesday 3|2 Blitz (Early)"]
[Site "Chess.com"]
[Date "2017.01.03"]
[Round "4"]
[White "Hamisandwich"]
[Black "yurisolo"]
[Result "1-0"]
[WhiteElo "2383"]
[BlackElo "2444"]
[TimeControl "180+2"]
[EndTime "11:43:54 PST"]
[Termination "Hamisandwich won by resignation"]

1. a3 {[%clk 0:03:02]} 1... e5 {[%clk 0:03:00.3]} 2. c4 {[%clk 0:03:00.1]} 2...
d6 {[%clk 0:03:01.1]} 3. g3 {[%clk 0:02:56.8]} 3... f5 {[%clk 0:03:02.1]} 4. Bg2
{[%clk 0:02:57.7]} 4... Nf6 {[%clk 0:03:03.5]} 5. d3 {[%clk 0:02:58.8]} 5... Be7
{[%clk 0:03:05]} 6. Nc3 {[%clk 0:03:00.2]} 6... O-O {[%clk 0:03:06.4]} 7. b4
{[%clk 0:03:00.6]} 7... a5 {[%clk 0:02:57.6]} 8. Rb1 {[%clk 0:02:56.5]} 8...
axb4 {[%clk 0:02:58.1]} 9. axb4 {[%clk 0:02:58.4]} 9... Na6 {[%clk 0:02:59.3]}
10. Nf3 {[%clk 0:02:55]} 10... Qe8 {[%clk 0:02:59.8]} 11. O-O {[%clk 0:02:52]}
11... Qh5 {[%clk 0:02:52.2]} 12. e3 {[%clk 0:02:26.3]} 12... Be6 {[%clk
0:02:44.5]} 13. Nd2 {[%clk 0:02:21.8]} 13... Qxd1 {[%clk 0:02:44.3]} 14. Rxd1
{[%clk 0:02:23.7]} 14... Rab8 {[%clk 0:02:36]} 15. d4 {[%clk 0:02:14.9]} 15...
Rfd8 {[%clk 0:02:27.9]} 16. b5 {[%clk 0:02:11.2]} 1-0

[Event "*** Titled Tuesday 3|2 Blitz (Early)"]
[Site "Chess.com"]
[Date "2017.01.03"]
[Round "4"]
[White "RamonManon0g"]
[Black "RitvarsReimanis"]
[Result "0-1"]
[WhiteElo "2269"]
[BlackElo "2438"]
[TimeControl "180+2"]
[EndTime "11:44:12 PST"]
[Termination "RitvarsReimanis won by resignation"]

1. d4 {[%clk 0:03:02]} 1... Nf6 {[%clk 0:03:00.1]} 2. Bg5 {[%clk 0:03:03.1]}
2... e6 {[%clk 0:02:58.2]} 3. e4 {[%clk 0:03:04]} 3... h6 {[%clk 0:02:54.9]} 4.
Bxf6 {[%clk 0:03:04.5]} 4... Qxf6 {[%clk 0:02:56.8]} 5. c3 {[%clk 0:03:05.6]}
5... d5 {[%clk 0:02:56.1]} 6. Nd2 {[%clk 0:03:06.5]} 6... c5 {[%clk 0:02:51.3]}
7. Ngf3 {[%clk 0:03:07.4]} 7... cxd4 {[%clk 0:02:51.4]} 8. cxd4 {[%clk
0:03:08.3]} 8... Nc6 {[%clk 0:02:50.8]} 9. Bb5 {[%clk 0:03:08]} 9... dxe4 {[%clk
0:02:50.1]} 10. Bxc6+ {[%clk 0:03:04.2]} 10... bxc6 {[%clk 0:02:50.1]} 11. Nxe4
{[%clk 0:03:06.1]} 11... Bb4+ {[%clk 0:02:50.6]} 12. Nc3 {[%clk 0:03:06.4]}
12... O-O {[%clk 0:02:46.5]} 13. O-O {[%clk 0:03:07.2]} 13... c5 {[%clk
0:02:47.4]} 14. dxc5 {[%clk 0:03:01.2]} 14... Ba6 {[%clk 0:02:42.3]} 15. Re1
{[%clk 0:02:54.6]} 15... Bxc5 {[%clk 0:02:31.2]} 16. Ne4 {[%clk 0:02:52.1]}
16... Qe7 {[%clk 0:02:31.9]} 17. Nxc5 {[%clk 0:02:52.1]} 17... Qxc5 {[%clk
0:02:33.8]} 18. Ne5 {[%clk 0:02:49.8]} 18... Rad8 {[%clk 0:02:29.2]} 19. Qf3
{[%clk 0:02:46.6]} 19... Rd5 {[%clk 0:02:25.6]} 20. Rac1 {[%clk 0:02:41]} 20...
Rxe5 {[%clk 0:01:56.1]} 0-1

[Event "*** Titled Tuesday 3|2 Blitz (Early)"]
[Site "Chess.com"]
[Date "2017.01.03"]
[Round "4"]
[White "Gordima"]
[Black "Izoria123"]
[Result "0-1"]
[WhiteElo "2478"]
[BlackElo "2693"]
[TimeControl "180+2"]
[EndTime "11:45:17 PST"]
[Termination "Izoria123 won by resignation"]

1. c4 {[%clk 0:02:59.6]} 1... g6 {[%clk 0:02:58.7]} 2. Nf3 {[%clk 0:02:54.6]}
2... Bg7 {[%clk 0:02:59.3]} 3. d4 {[%clk 0:02:55.5]} 3... c5 {[%clk 0:02:59.5]}
4. d5 {[%clk 0:02:49.4]} 4... d6 {[%clk 0:02:59.7]} 5. e4 {[%clk 0:02:48.9]}
5... e6 {[%clk 0:02:59.4]} 6. Nc3 {[%clk 0:02:49.8]} 6... exd5 {[%clk
0:03:00.1]} 7. exd5 {[%clk 0:02:50.5]} 7... Ne7 {[%clk 0:02:57.4]} 8. Bd3 {[%clk
0:02:51.2]} 8... Bg4 {[%clk 0:02:57.6]} 9. h3 {[%clk 0:02:51.4]} 9... Bxf3
{[%clk 0:02:58.3]} 10. Qxf3 {[%clk 0:02:52.4]} 10... Nd7 {[%clk 0:02:59.3]} 11.
Qe2 {[%clk 0:02:51.4]} 11... O-O {[%clk 0:02:57.5]} 12. O-O {[%clk 0:02:51.7]}
12... Re8 {[%clk 0:02:57.1]} 13. Qd1 {[%clk 0:02:44.1]} 13... Ne5 {[%clk
0:02:57.4]} 14. Be2 {[%clk 0:02:43.9]} 14... Nf5 {[%clk 0:02:58.2]} 15. Bd2
{[%clk 0:02:07.4]} 15... Qh4 {[%clk 0:02:51.7]} 16. Bg4 {[%clk 0:01:39.6]} 16...
Nd4 {[%clk 0:02:25.9]} 17. b3 {[%clk 0:01:28.5]} 17... f5 {[%clk 0:02:22.8]} 18.
Be2 {[%clk 0:01:28.2]} 18... Re7 {[%clk 0:02:23]} 19. Re1 {[%clk 0:01:09.1]}
19... Rae8 {[%clk 0:02:23.5]} 20. Bf1 {[%clk 0:01:10.2]} 20... Nef3+ {[%clk
0:02:23.1]} 21. gxf3 {[%clk 0:01:08.1]} 21... Rxe1 {[%clk 0:02:24.7]} 0-1

[Event "*** Titled Tuesday 3|2 Blitz (Early)"]
[Site "Chess.com"]
[Date "2017.01.03"]
[Round "4"]
[White "ajkom197"]
[Black "roldieyi"]
[Result "1-0"]
[WhiteElo "2300"]
[BlackElo "2160"]
[TimeControl "180+2"]
[EndTime "11:45:19 PST"]
[Termination "ajkom197 won by checkmate"]

1. d4 {[%clk 0:03:02]} 1... Nf6 {[%clk 0:02:57]} 2. Bf4 {[%clk 0:03:01.4]} 2...
e6 {[%clk 0:02:57.4]} 3. Nf3 {[%clk 0:03:01.8]} 3... d5 {[%clk 0:02:59.3]} 4. e3
{[%clk 0:03:01.5]} 4... Be7 {[%clk 0:02:58.8]} 5. Nbd2 {[%clk 0:03:02]} 5... O-O
{[%clk 0:03:00.3]} 6. Bd3 {[%clk 0:03:02.6]} 6... c5 {[%clk 0:03:01]} 7. c3
{[%clk 0:03:03.4]} 7... b6 {[%clk 0:03:01.9]} 8. Qe2 {[%clk 0:03:03.2]} 8... Bb7
{[%clk 0:03:02.1]} 9. h4 {[%clk 0:03:03.6]} 9... Ne4 {[%clk 0:03:02.7]} 10. Ng5
{[%clk 0:02:59.9]} 10... Bxg5 {[%clk 0:02:15.4]} 11. hxg5 {[%clk 0:02:50.1]}
11... g6 {[%clk 0:02:15.8]} 12. Qg4 {[%clk 0:02:44.8]} 12... Nd7 {[%clk
0:01:45.4]} 13. Bxe4 {[%clk 0:02:30.6]} 13... dxe4 {[%clk 0:01:44.8]} 14. O-O-O
{[%clk 0:02:31.3]} 14... Re8 {[%clk 0:01:44.2]} 15. Rxh7 {[%clk 0:02:21.2]}
15... Kxh7 {[%clk 0:01:37.3]} 16. Qh4+ {[%clk 0:02:21.2]} 16... Kg8 {[%clk
0:01:36.1]} 17. Rh1 {[%clk 0:01:46.4]} 17... Kf8 {[%clk 0:01:33.1]} 18. Bd6+
{[%clk 0:01:45.9]} 18... Re7 {[%clk 0:01:31.3]} 19. Qh8# {[%clk 0:01:46]} 1-0

[Event "*** Titled Tuesday 3|2 Blitz (Early)"]
[Site "Chess.com"]
[Date "2017.01.03"]
[Round "4"]
[White "macko06"]
[Black "johnathan113"]
[Result "0-1"]
[WhiteElo "2268"]
[BlackElo "2324"]
[TimeControl "180+2"]
[EndTime "11:45:46 PST"]
[Termination "johnathan113 won by resignation"]

1. d4 {[%clk 0:03:02]} 1... g6 {[%clk 0:03:01.1]} 2. e4 {[%clk 0:03:02.9]} 2...
Nf6 {[%clk 0:03:02]} 3. Nc3 {[%clk 0:03:02.3]} 3... d5 {[%clk 0:03:02.3]} 4. e5
{[%clk 0:02:56.9]} 4... Ne4 {[%clk 0:03:03.4]} 5. Nce2 {[%clk 0:02:43.5]} 5...
f6 {[%clk 0:03:03.3]} 6. f3 {[%clk 0:02:39.1]} 6... Ng5 {[%clk 0:03:04.2]} 7.
Bxg5 {[%clk 0:02:36.4]} 7... fxg5 {[%clk 0:03:06.1]} 8. Ng3 {[%clk 0:02:32.5]}
8... c5 {[%clk 0:03:00.6]} 9. c3 {[%clk 0:02:29.4]} 9... Nc6 {[%clk 0:03:01.2]}
10. Qd2 {[%clk 0:02:04.7]} 10... e6 {[%clk 0:03:02.1]} 11. Bb5 {[%clk
0:02:00.6]} 11... Qb6 {[%clk 0:02:59.9]} 12. Bxc6+ {[%clk 0:01:58.8]} 12... bxc6
{[%clk 0:03:01.8]} 13. N1e2 {[%clk 0:01:56.3]} 13... Rb8 {[%clk 0:03:03.1]} 14.
Rb1 {[%clk 0:01:56]} 14... cxd4 {[%clk 0:03:00.4]} 15. cxd4 {[%clk 0:01:42.8]}
15... Bb4 {[%clk 0:03:01.4]} 16. Nc3 {[%clk 0:01:43.8]} 16... Ba6 {[%clk
0:03:02.1]} 17. Kf2 {[%clk 0:01:37.6]} 17... c5 {[%clk 0:03:00.4]} 18. a3 {[%clk
0:01:19.2]} 18... cxd4 {[%clk 0:03:00.4]} 19. axb4 {[%clk 0:01:12.4]} 19...
dxc3+ {[%clk 0:03:00.8]} 20. Qe3 {[%clk 0:01:13.8]} 20... d4 {[%clk 0:02:59.6]}
21. Qxg5 {[%clk 0:00:57.4]} 21... d3+ {[%clk 0:02:52.5]} 22. Qe3 {[%clk
0:00:58.5]} 22... c2 {[%clk 0:02:53.6]} 23. Rbc1 {[%clk 0:00:56]} 23... O-O
{[%clk 0:02:44]} 24. Ne4 {[%clk 0:00:52.1]} 24... Qxb4 {[%clk 0:02:41.1]} 25.
Qh6 {[%clk 0:00:42.9]} 25... Qxe4 {[%clk 0:02:36.5]} 0-1

[Event "*** Titled Tuesday 3|2 Blitz (Early)"]
[Site "Chess.com"]
[Date "2017.01.03"]
[Round "4"]
[White "OparinGrigoriy"]
[Black "dretch"]
[Result "0-1"]
[WhiteElo "2571"]
[BlackElo "2599"]
[TimeControl "180+2"]
[EndTime "11:45:49 PST"]
[Termination "dretch won by resignation"]

1. Nf3 {[%clk 0:03:02]} 1... d5 {[%clk 0:03:00.5]} 2. g3 {[%clk 0:03:03.7]} 2...
Bg4 {[%clk 0:02:58.2]} 3. Bg2 {[%clk 0:03:04.7]} 3... Nd7 {[%clk 0:02:59.4]} 4.
c4 {[%clk 0:03:05.1]} 4... e6 {[%clk 0:02:58.9]} 5. cxd5 {[%clk 0:03:06.6]} 5...
exd5 {[%clk 0:02:59.9]} 6. O-O {[%clk 0:03:08.3]} 6... Bd6 {[%clk 0:02:59.4]} 7.
Nc3 {[%clk 0:03:09.4]} 7... Ne7 {[%clk 0:02:58]} 8. d3 {[%clk 0:03:10.9]} 8...
O-O {[%clk 0:02:58.2]} 9. h3 {[%clk 0:03:11.9]} 9... Bxf3 {[%clk 0:02:50]} 10.
Bxf3 {[%clk 0:03:13]} 10... c6 {[%clk 0:02:48.7]} 11. Bg2 {[%clk 0:03:12.1]}
11... d4 {[%clk 0:02:47]} 12. Ne4 {[%clk 0:03:12.8]} 12... Be5 {[%clk
0:02:46.2]} 13. Rb1 {[%clk 0:03:09.8]} 13... Nd5 {[%clk 0:02:46]} 14. Nd2 {[%clk
0:03:07.8]} 14... Qe7 {[%clk 0:02:39.9]} 15. Re1 {[%clk 0:02:57.5]} 15... Rfe8
{[%clk 0:02:35.4]} 16. Nc4 {[%clk 0:02:58.6]} 16... Bc7 {[%clk 0:02:29.4]} 17.
Bd2 {[%clk 0:02:59]} 17... h5 {[%clk 0:02:23.4]} 18. Na5 {[%clk 0:02:58.1]}
18... h4 {[%clk 0:02:19.8]} 19. g4 {[%clk 0:02:59.4]} 19... Qd6 {[%clk
0:02:09.1]} 20. Nxb7 {[%clk 0:02:56.8]} 20... Qh2+ {[%clk 0:02:07.4]} 21. Kf1
{[%clk 0:02:58]} 21... Ne3+ {[%clk 0:02:02.1]} 22. fxe3 {[%clk 0:02:25.4]} 22...
dxe3 {[%clk 0:01:27.3]} 23. Bc3 {[%clk 0:02:25.7]} 23... Bg3 {[%clk 0:01:16.5]}
0-1

[Event "*** Titled Tuesday 3|2 Blitz (Early)"]
[Site "Chess.com"]
[Date "2017.01.03"]
[Round "4"]
[White "kleinebeer98"]
[Black "Alexander_Moskalenko"]
[Result "0-1"]
[WhiteElo "1678"]
[BlackElo "2656"]
[TimeControl "180+2"]
[EndTime "11:46:00 PST"]
[Termination "Alexander_Moskalenko won by resignation"]

1. e4 {[%clk 0:03:02]} 1... e6 {[%clk 0:03:02]} 2. d4 {[%clk 0:03:02.6]} 2... d5
{[%clk 0:03:03.2]} 3. Nd2 {[%clk 0:03:03.9]} 3... c5 {[%clk 0:03:03.4]} 4. Ngf3
{[%clk 0:03:04.7]} 4... Nf6 {[%clk 0:03:03.8]} 5. exd5 {[%clk 0:02:59.5]} 5...
exd5 {[%clk 0:03:04.1]} 6. Bb5+ {[%clk 0:02:55.4]} 6... Bd7 {[%clk 0:03:02.8]}
7. Bxd7+ {[%clk 0:02:50.7]} 7... Nbxd7 {[%clk 0:03:04.7]} 8. O-O {[%clk
0:02:51.6]} 8... Be7 {[%clk 0:03:05.4]} 9. Re1 {[%clk 0:02:50.2]} 9... O-O
{[%clk 0:03:06.1]} 10. c3 {[%clk 0:02:44.8]} 10... c4 {[%clk 0:03:07.4]} 11. a4
{[%clk 0:02:41.5]} 11... a6 {[%clk 0:03:07.5]} 12. a5 {[%clk 0:02:41.1]} 12...
Bd6 {[%clk 0:03:05.3]} 13. b3 {[%clk 0:02:40.4]} 13... cxb3 {[%clk 0:03:06.1]}
14. Qxb3 {[%clk 0:02:41.3]} 14... b5 {[%clk 0:03:07.5]} 15. axb6 {[%clk
0:02:42]} 15... Qxb6 {[%clk 0:03:05.4]} 16. Qa4 {[%clk 0:02:41.3]} 16... Qb5
{[%clk 0:03:00.7]} 17. c4 {[%clk 0:02:36.2]} 17... Qxa4 {[%clk 0:02:56.7]} 18.
Rxa4 {[%clk 0:02:38.1]} 18... Nb6 {[%clk 0:02:56.4]} 19. Ra2 {[%clk 0:02:29.6]}
19... Nxc4 {[%clk 0:02:57.1]} 20. Nxc4 {[%clk 0:02:28.8]} 20... dxc4 {[%clk
0:02:59]} 21. Ne5 {[%clk 0:02:25.6]} 21... c3 {[%clk 0:02:56.3]} 22. Nc4 {[%clk
0:02:21.3]} 22... Bb4 {[%clk 0:02:52.9]} 23. Ba3 {[%clk 0:02:05.3]} 23... a5
{[%clk 0:02:52.5]} 24. Nb6 {[%clk 0:02:02.5]} 24... Rae8 {[%clk 0:02:45.6]} 25.
Rc1 {[%clk 0:02:01]} 25... Rb8 {[%clk 0:02:36.3]} 26. Na4 {[%clk 0:01:49.3]}
26... Rfd8 {[%clk 0:02:37.3]} 27. Nxc3 {[%clk 0:01:47.3]} 27... Rxd4 {[%clk
0:02:37.6]} 28. Ne2 {[%clk 0:01:46.1]} 28... Re4 {[%clk 0:02:34.2]} 29. Ng3
{[%clk 0:01:46.4]} 29... Rd4 {[%clk 0:02:33.5]} 30. Bxb4 {[%clk 0:01:43.2]}
30... axb4 {[%clk 0:02:34.1]} 31. Nf5 {[%clk 0:01:42.1]} 31... Rd3 {[%clk
0:02:31.1]} 32. Ne7+ {[%clk 0:01:41.2]} 32... Kf8 {[%clk 0:02:30.3]} 33. Nc6
{[%clk 0:01:43.1]} 33... b3 {[%clk 0:02:31.6]} 34. Raa1 {[%clk 0:01:33.7]} 34...
Rc8 {[%clk 0:02:29.7]} 35. Nb4 {[%clk 0:01:33.7]} 35... Rxc1+ {[%clk 0:02:30]}
36. Rxc1 {[%clk 0:01:33]} 36... Rd4 {[%clk 0:02:29]} 37. Rc8+ {[%clk 0:01:32.4]}
37... Ne8 {[%clk 0:02:29.5]} 0-1

[Event "*** Titled Tuesday 3|2 Blitz (Early)"]
[Site "Chess.com"]
[Date "2017.01.03"]
[Round "4"]
[White "Gabrielian_Artur"]
[Black "Keranke"]
[Result "1-0"]
[WhiteElo "2679"]
[BlackElo "2596"]
[TimeControl "180+2"]
[EndTime "11:46:16 PST"]
[Termination "Gabrielian_Artur won by resignation"]

1. e4 {[%clk 0:03:02]} 1... g6 {[%clk 0:03:01.2]} 2. d4 {[%clk 0:02:58.8]} 2...
Bg7 {[%clk 0:03:01.7]} 3. Nc3 {[%clk 0:03:00]} 3... d6 {[%clk 0:03:03.1]} 4. f4
{[%clk 0:03:00.5]} 4... a6 {[%clk 0:03:04.7]} 5. Be3 {[%clk 0:02:50.4]} 5... b5
{[%clk 0:03:05.9]} 6. Bd3 {[%clk 0:02:46.3]} 6... Bb7 {[%clk 0:03:07.1]} 7. Nf3
{[%clk 0:02:47.3]} 7... Nd7 {[%clk 0:03:08.4]} 8. e5 {[%clk 0:02:44.2]} 8... Nh6
{[%clk 0:03:03.2]} 9. h3 {[%clk 0:02:39.5]} 9... O-O {[%clk 0:03:02.9]} 10. O-O
{[%clk 0:02:37.3]} 10... Rc8 {[%clk 0:03:03.4]} 11. e6 {[%clk 0:02:35.1]} 11...
fxe6 {[%clk 0:02:58.7]} 12. Ng5 {[%clk 0:02:36.3]} 12... Rf6 {[%clk 0:03:00.3]}
13. Nce4 {[%clk 0:02:31.3]} 13... Nf5 {[%clk 0:02:59.5]} 14. Nxf6+ {[%clk
0:02:27]} 14... exf6 {[%clk 0:03:01.4]} 15. Nxe6 {[%clk 0:02:16.3]} 15... Nxe3
{[%clk 0:02:54.8]} 16. Qe2 {[%clk 0:02:07.5]} 16... Qe7 {[%clk 0:02:54.6]} 17.
Qxe3 {[%clk 0:02:08.7]} 17... Re8 {[%clk 0:02:47]} 18. f5 {[%clk 0:02:09.1]}
18... gxf5 {[%clk 0:02:44.2]} 19. Bxf5 {[%clk 0:02:09.5]} 19... Bd5 {[%clk
0:02:38.6]} 20. Rae1 {[%clk 0:02:09.7]} 20... Nf8 {[%clk 0:02:39.1]} 21. Nxc7
{[%clk 0:01:55]} 21... Qxe3+ {[%clk 0:02:41]} 22. Rxe3 {[%clk 0:01:55.9]} 22...
Rxe3 {[%clk 0:02:42.9]} 23. Nxd5 {[%clk 0:01:57]} 23... Re2 {[%clk 0:02:40.6]}
24. Bd3 {[%clk 0:01:54.3]} 24... Rd2 {[%clk 0:02:09.8]} 25. Nxf6+ {[%clk
0:01:46.8]} 25... Bxf6 {[%clk 0:02:05.6]} 26. Rxf6 {[%clk 0:01:47.8]} 26... Rd1+
{[%clk 0:02:07]} 27. Kf2 {[%clk 0:01:47.1]} 27... Ra1 {[%clk 0:02:05.7]} 28.
Rxd6 {[%clk 0:01:38.4]} 28... Rxa2 {[%clk 0:02:05.8]} 29. b4 {[%clk 0:01:39.1]}
29... Kf7 {[%clk 0:02:05.7]} 30. Ke3 {[%clk 0:01:39.6]} 30... Ra4 {[%clk
0:02:02.4]} 31. c3 {[%clk 0:01:39]} 31... Ra3 {[%clk 0:02:03.5]} 32. Kd2 {[%clk
0:01:38.1]} 32... Ra2+ {[%clk 0:02:04.5]} 33. Bc2 {[%clk 0:01:39.4]} 33... Ke7
{[%clk 0:02:05.6]} 34. Rh6 {[%clk 0:01:39.2]} 34... Kd8 {[%clk 0:02:00.5]} 35.
Kc1 {[%clk 0:01:37.5]} 35... Ra1+ {[%clk 0:01:57.9]} 36. Bb1 {[%clk 0:01:38.3]}
1-0